bitfinex-derivatives/quotes_BTCF0:USTF0_20251207
["timestamp","ask_amount","ask_price","bid_price","bid_amount"]
[1765144186658,0.29432,90260.0,90259.0,0.002]
[1765144186959,0.29432,90260.0,90259.0,0.0130783]
[1765144187955,0.15404,90260.0,90259.0,0.2941583]
[1765144189658,0.15404,90260.0,90259.0,0.0130783]
[1765144189659,0.29419,90260.0,90259.0,0.0130783]
[1765144190965,0.29419,90260.0,90259.0,0.1487283]
[1765144191154,0.29419,90260.0,90259.0,0.2862383]
[1765144191658,0.001,90260.0,90259.0,0.2862383]
[1765144192263,0.13483,90260.0,90259.0,0.2862383]
[1765144192757,0.001,90260.0,90259.0,0.2862383]
[1765144194062,0.0007068,90260.0,90259.0,0.2862383]
[1765144194266,0.00016624,90271.0,90270.0,0.2842369]
[1765144194961,0.19149853,90302.0,90301.0,0.1467231]
[1765144195166,0.0202,90313.0,90304.0,0.0110727]
[1765144195353,0.08175,90321.0,90299.0,0.07843]
[1765144195354,0.02493816,90312.0,90299.0,0.07843]
[1765144195554,0.02493816,90311.0,90299.0,0.07843]
[1765144195757,0.13383,90300.0,90299.0,0.0110733]
[1765144195966,0.13383,90300.0,90299.0,0.2842333]
[1765144196260,0.27398,90300.0,90299.0,0.2842333]
[1765144196459,0.27398,90296.0,90295.0,0.0110738]
[1765144197260,0.00016614,90309.0,90308.0,0.27316]
[1765144197563,0.27414614,90309.0,90308.0,0.13565]
[1765144198058,0.27398,90305.0,90304.0,0.1467227]
[1765144198260,0.00016614,90309.0,90308.0,0.2842323]
[1765144198963,0.00616614,90309.0,90308.0,0.2852323]
[1765144200064,0.28014614,90309.0,90308.0,0.2852323]
[1765144200358,0.28014614,90309.0,90308.0,0.001]
[1765144201761,0.00616614,90309.0,90308.0,0.25381]
[1765144202760,0.00027678,90326.0,90325.0,0.25281]
[1765144202953,0.00027678,90326.0,90325.0,0.2638802]
[1765144203360,0.0202,90336.0,90335.0,0.263879]
[1765144203955,0.00016605,90345.0,90344.0,0.2638779]
[1765144205059,0.00416605,90345.0,90344.0,0.2648779]
[1765144205668,0.00016605,90345.0,90344.0,0.2638779]
[1765144205868,0.00016605,90345.0,90344.0,0.2648779]
[1765144207969,0.25523605,90345.0,90344.0,0.0120679]
[1765144208469,0.25523605,90345.0,90344.0,0.001]
[1765144209668,0.25507,90333.0,90332.0,0.0110693]
[1765144210961,0.25607,90333.0,90332.0,0.005]
[1765144211557,0.25607,90333.0,90326.0,0.00016605]
[1765144211758,0.257,90327.0,90326.0,0.00016605]
[1765144214266,0.26,90327.0,90326.0,0.00116605]
[1765144214467,0.26,90327.0,90326.0,0.12361605]
[1765144214965,0.003,90327.0,90326.0,0.24471605]
[1765144215568,0.0110676,90347.0,90344.0,0.24355]
[1765144216072,0.0202,90348.0,90344.0,0.2546179]
[1765144216972,0.0202,90348.0,90344.0,0.24355]
[1765144217275,0.26028,90333.0,90332.0,0.0110693]
[1765144217976,0.26028,90333.0,90332.0,0.1335193]
[1765144219076,0.26028,90333.0,90332.0,0.2546193]
[1765144219466,0.00516605,90345.0,90344.0,0.2546179]
[1765144219663,0.00016605,90345.0,90344.0,0.2546179]
[1765144219968,0.26044605,90345.0,90344.0,0.2546179]
[1765144220165,0.26044605,90345.0,90336.0,0.08152]
[1765144220166,0.0110679,90344.0,90340.0,0.0110682]
[1765144220478,0.26028,90344.0,90343.0,0.12245]
[1765144221076,0.26028,90344.0,90343.0,0.24355]
[1765144221673,0.00516605,90345.0,90344.0,0.2546179]
[1765144222076,0.00016605,90345.0,90344.0,0.2546179]
[1765144222579,0.26044605,90345.0,90344.0,0.12245]
[1765144222963,0.26544605,90345.0,90344.0,0.12345]
[1765144223478,0.26544605,90345.0,90344.0,0.24455]
[1765144223679,0.00516605,90345.0,90344.0,0.24455]
[1765144224177,0.26544605,90345.0,90344.0,0.001]
[1765144225170,0.29021126,90345.0,90344.0,0.001]
[1765144225883,0.29021126,90345.0,90344.0,0.24455]
[1765144226284,0.02993126,90345.0,90344.0,0.24455]
[1765144227288,0.29021126,90345.0,90344.0,0.001]
[1765144228581,0.26028,90327.0,90317.0,0.0110711]
[1765144228786,0.26028,90314.0,90313.0,0.0110716]
[1765144228978,0.28504521,90314.0,90313.0,0.0110716]
[1765144229382,0.28504521,90314.0,90313.0,0.1335216]
[1765144230490,0.28504521,90314.0,90313.0,0.0110716]
[1765144231081,0.28504521,90314.0,90313.0,0.006]
[1765144231284,0.28604521,90314.0,90313.0,0.006]
[1765144231480,0.28604521,90314.0,90309.0,0.0110721]
[1765144231686,0.26028,90310.0,90309.0,0.1335221]
[1765144231993,0.12897,90305.0,90304.0,0.13368875]
[1765144232178,0.28504521,90305.0,90304.0,0.25478875]
[1765144233490,0.28508489,90305.0,90304.0,0.01123885]
[1765144233887,0.02480489,90305.0,90304.0,0.25478885]
[1765144234187,0.13153348,90320.0,90304.0,0.25478885]
[1765144234388,0.001,90305.0,90304.0,0.25978885]
[1765144235090,0.0110707,90321.0,90313.0,0.0110716]
[1765144235285,0.12897,90314.0,90313.0,0.2546216]
[1765144235485,0.15376858,90314.0,90313.0,0.2546216]
[1765144236002,0.26028,90320.0,90319.0,0.2546209]
[1765144236292,0.15376354,90320.0,90319.0,0.2546209]
[1765144236482,0.26028,90314.0,90313.0,0.1335216]
[1765144236687,0.26028,90314.0,90313.0,0.12245]
[1765144237498,0.26028,90305.0,90304.0,0.24371605]
[1765144237896,0.2713526,90305.0,90304.0,0.00016605]
[1765144239298,0.2763526,90305.0,90304.0,0.00116605]
[1765144239702,0.2763526,90305.0,90304.0,0.12361605]
[1765144239906,0.26528,90305.0,90304.0,0.24471605]
[1765144240497,0.26528,90305.0,90304.0,0.00116605]
[1765144241801,0.231,90283.0,90282.0,0.2448054]
[1765144242099,0.231,90283.0,90282.0,0.11956]
[1765144242307,0.231,90278.0,90277.0,0.20108]
[1765144242500,0.231,90278.0,90277.0,0.31525]
[1765144244498,0.232,90278.0,90277.0,0.23773]
[1765144245406,0.231,90278.0,90277.0,0.23373]
[1765144245601,0.232,90278.0,90277.0,0.005]
[1765144246806,0.232,90278.0,90271.0,0.1306368]
[1765144246807,0.231,90272.0,90271.0,0.1306368]
[1765144247406,0.231,90272.0,90271.0,0.2448068]
[1765144247809,0.11558,90272.0,90271.0,0.2448068]
[1765144248201,0.231,90272.0,90271.0,0.2448068]
[1765144248402,0.232,90272.0,90271.0,0.23873]
[1765144249609,0.232,90272.0,90271.0,0.005]
[1765144249813,0.232,90272.0,90271.0,0.23873]
[1765144251699,0.232,90272.0,90271.0,0.12456]
[1765144251903,0.232,90272.0,90271.0,0.005]
[1765144252910,0.2522,90272.0,90271.0,0.005]
[1765144255102,0.2522,90272.0,90249.0,0.0110794]
[1765144255103,0.231,90253.0,90249.0,0.0110794]
[1765144255300,0.242079,90253.0,90244.0,0.07421]
[1765144255706,0.242079,90253.0,90247.0,0.0110797]
[1765144256208,0.231,90253.0,90252.0,0.23383433]
[1765144256417,0.231,90253.0,90252.0,0.21955433]
[1765144257307,0.232,90253.0,90252.0,0.22655433]
[1765144257902,0.00016615,90262.0,90261.0,0.21945]
[1765144258211,0.0202,90272.0,90271.0,0.2305268]
[1765144258407,0.22449,90283.0,90282.0,0.2305254]
[1765144260103,0.23149,90283.0,90282.0,0.2305254]
[1765144260712,0.22649,90283.0,90282.0,0.2315254]
[1765144261108,0.22649,90283.0,90282.0,0.001]
[1765144261308,0.2355664,90274.0,90273.0,0.00016615]
[1765144261509,0.22449,90253.0,90251.0,0.0110792]
[1765144262008,0.22449,90253.0,90235.0,0.0110812]
[1765144262009,0.22449,90253.0,90250.0,0.0110793]
[1765144262414,0.22449,90241.0,90240.0,0.0110805]
[1765144263418,0.22461054,90241.0,90240.0,0.0110805]
[1765144263804,0.22561054,90241.0,90240.0,0.0170805]
[1765144264009,0.22561054,90241.0,90240.0,0.2365305]
[1765144264811,0.00112054,90241.0,90240.0,0.2991905]
[1765144265013,0.0202,90253.0,90252.0,0.2931891]
[1765144265215,0.02036615,90262.0,90261.0,0.230528]
[1765144265413,0.24485615,90262.0,90261.0,0.011078]
[1765144265615,0.22449,90258.0,90257.0,0.0110785]
[1765144265821,0.22449,90258.0,90253.0,0.011079]
[1765144266028,0.11008,90254.0,90253.0,0.122979]
[1765144266212,0.02036615,90262.0,90261.0,0.230528]
[1765144266213,0.13044615,90262.0,90261.0,0.230528]
[1765144266519,0.02036615,90262.0,90261.0,0.230528]
[1765144268010,0.00846615,90262.0,90261.0,0.230528]
[1765144268419,0.00946615,90262.0,90261.0,0.234528]
[1765144269010,0.00846615,90262.0,90261.0,0.230528]
[1765144269210,0.00946615,90262.0,90261.0,0.234528]
[1765144271018,0.00846615,90262.0,90261.0,0.230528]
[1765144271318,0.00946615,90262.0,90261.0,0.236528]
[1765144271712,0.11295615,90262.0,90261.0,0.236528]
[1765144272824,0.00946615,90262.0,90261.0,0.235528]
[1765144275123,0.21431615,90262.0,90261.0,0.235528]
[1765144275417,0.21431615,90262.0,90261.0,0.127978]
[1765144276412,0.21431615,90262.0,90261.0,0.016078]
[1765144277109,0.00946615,90262.0,90261.0,0.232998]
[1765144278818,0.00016615,90271.0,90270.0,0.2279969]
[1765144280121,0.20501615,90271.0,90270.0,0.0110769]
[1765144280922,0.20501615,90271.0,90270.0,0.001]
[1765144280923,0.21709295,90271.0,90270.0,0.001]
[1765144281611,0.20485,90253.0,90252.0,0.11976525]
[1765144281815,0.20485,90253.0,90252.0,0.00016615]
[1765144281816,0.215929,90253.0,90252.0,0.00016615]
[1765144282231,0.24070802,90253.0,90252.0,0.00016615]
[1765144282820,0.24660802,90253.0,90252.0,0.00016615]
[1765144283817,0.24760802,90253.0,90252.0,0.00516615]
[1765144285431,0.0069,90253.0,90252.0,0.28675615]
[1765144285913,0.0059,90253.0,90252.0,0.28675615]
[1765144286119,0.001,90253.0,90252.0,0.28675615]
[1765144287014,0.0110771,90269.0,90252.0,0.06983615]
[1765144287418,0.28337834,90262.0,90256.0,0.0110785]
[1765144287628,0.15485,90253.0,90252.0,0.00516615]
[1765144288224,0.15485,90253.0,90252.0,0.00016615]
[1765144288626,0.05349,90253.0,90252.0,0.28175615]
[1765144289531,0.0110775,90266.0,90252.0,0.06483615]
[1765144289728,0.0039,90268.0,90267.0,0.21692]
[1765144289928,0.20875,90268.0,90267.0,0.21692]
[1765144290226,0.0039,90268.0,90267.0,0.21692]
[1765144291528,0.0049,90268.0,90267.0,0.21692]
[1765144292722,0.0049,90268.0,90267.0,0.51692]
[1765144292930,0.0049,90268.0,90267.0,0.21692]
[1765144293129,0.0049,90268.0,90267.0,0.22192]
[1765144293931,0.0049,90268.0,90267.0,0.22292]
[1765144294518,0.0049,90268.0,90267.0,0.21692]
[1765144294720,0.0049,90268.0,90267.0,0.22292]
[1765144294922,0.001,90268.0,90267.0,0.22292]
[1765144295328,0.00406615,90271.0,90270.0,0.21692]
[1765144296925,0.00506615,90271.0,90270.0,0.22292]
[1765144297625,0.20891615,90271.0,90270.0,0.21692]
[1765144297822,0.00506615,90271.0,90270.0,0.22292]
[1765144298426,0.20991615,90271.0,90270.0,0.22292]
[1765144299033,0.20991615,90271.0,90270.0,0.11452]
[1765144299233,0.20991615,90271.0,90270.0,0.11352]
[1765144299627,0.20991615,90271.0,90270.0,0.005]
[1765144300129,0.20485,90261.0,90260.0,0.1195981]
[1765144300522,0.20485,90261.0,90260.0,0.2279981]
[1765144300932,0.20875,90261.0,90260.0,0.2279981]
[1765144302425,0.20975,90261.0,90260.0,0.2319981]
[1765144303238,0.20975,90261.0,90260.0,0.22092]
[1765144303436,0.20975,90261.0,90260.0,0.004]
[1765144305231,0.0049,90261.0,90260.0,0.2077882]
[1765144305620,0.001,90261.0,90260.0,0.2077882]
[1765144305828,0.0039,90270.0,90269.0,0.2037871]
[1765144307132,0.19962,90270.0,90269.0,0.19371]
[1765144307337,0.19962,90270.0,90269.0,0.001]
[1765144308429,0.19462,90270.0,90255.0,0.06062]
[1765144308629,0.19562,90270.0,90269.0,0.10263]
[1765144308928,0.19562,90270.0,90269.0,0.006]
[1765144309324,0.0972,90265.0,90264.0,0.2037876]
[1765144309524,0.19072,90265.0,90264.0,0.2037876]
[1765144309729,0.19462,90265.0,90264.0,0.2037876]
[1765144310240,0.19462,90265.0,90264.0,0.19271]
[1765144311643,0.19562,90265.0,90264.0,0.19671]
[1765144312437,0.2066975,90265.0,90264.0,0.19671]
[1765144312634,0.2066975,90265.0,90264.0,0.004]
[1765144313237,0.19072,90256.0,90255.0,0.15725]
[1765144313644,0.19072,90253.0,90250.0,0.0110793]
[1765144313836,0.19462,90253.0,90250.0,0.0110793]
[1765144314645,0.19462,90253.0,90252.0,0.09679615]
[1765144315045,0.19462,90253.0,90252.0,0.00016615]
[1765144315247,0.19462,90253.0,90252.0,0.19287615]
[1765144315545,0.19562,90253.0,90252.0,0.19287615]
[1765144316138,0.0049,90253.0,90252.0,0.19287615]
[1765144316343,0.0049,90253.0,90252.0,0.58287615]
[1765144316536,0.00016615,90271.0,90270.0,0.2499269]
[1765144318536,0.18758615,90271.0,90270.0,0.23885]
[1765144318742,0.18742,90267.0,90266.0,0.1001374]
[1765144318943,0.18742,90267.0,90266.0,0.1966874]
[1765144319246,0.18742,90267.0,90266.0,0.18561]
[1765144319448,0.09731,90258.0,90257.0,0.1001385]
[1765144319648,0.18742,90258.0,90257.0,0.1966885]
[1765144320447,0.18742,90265.0,90264.0,0.1966876]
[1765144320947,0.18742,90257.0,90256.0,0.18561]
[1765144321145,0.18742,90257.0,90252.0,0.00016615]
[1765144321146,0.18742,90253.0,90252.0,0.00016615]
[1765144321347,0.18742,90253.0,90227.0,0.08906]
[1765144321348,0.18742,90228.0,90227.0,0.08906]
[1765144321550,0.18742,90223.0,90222.0,0.1001428]
[1765144321747,0.18742,90223.0,90206.0,0.09911395]
[1765144321748,0.0110829,90222.0,90206.0,0.00027714]
[1765144321942,0.18742,90217.0,90216.0,0.0110835]
[1765144322246,0.18742,90217.0,90206.0,0.00027714]
[1765144322247,0.18742,90207.0,90206.0,0.00027714]
[1765144322551,0.18842,90207.0,90206.0,0.00027714]
[1765144322938,0.23472,90207.0,90206.0,0.00027714]
[1765144323138,0.18742,90194.0,90177.0,0.00770949]
[1765144323542,0.18742,90178.0,90177.0,0.00770949]
[1765144323845,0.18842,90178.0,90177.0,0.00770949]
[1765144324349,0.18742,90165.0,90164.0,0.00726608]
[1765144324645,0.00010524,90165.0,90164.0,0.1967]
[1765144325551,0.00016635,90174.0,90173.0,0.1966989]
[1765144325739,0.00116635,90174.0,90173.0,0.1966989]
[1765144325936,0.18742,90196.0,90195.0,0.1001461]
[1765144326138,0.13153026,90210.0,90202.0,0.1966952]
[1765144326441,0.04204,90220.0,90188.0,0.05324]
[1765144326442,0.17357026,90220.0,90206.0,0.0110847]
[1765144326643,0.13153026,90216.0,90190.0,0.14261696]
[1765144326838,0.00016635,90212.0,90211.0,0.08906]
[1765144327149,0.00016635,90212.0,90211.0,0.18561]
[1765144327758,0.0110821,90229.0,90212.0,0.0110839]
[1765144327942,0.0110814,90234.0,90202.0,0.05324]
[1765144328249,0.13153026,90240.0,90229.0,0.0110819]
[1765144328549,0.14261096,90240.0,90224.0,0.0110826]
[1765144328751,0.00016625,90237.0,90219.0,0.00016625]
[1765144328945,0.13153026,90230.0,90219.0,0.00016625]
[1765144329150,0.13153026,90230.0,90220.0,0.011083]
[1765144329537,0.13153026,90230.0,90219.0,0.00016625]
[1765144329538,0.18742,90220.0,90219.0,0.00016625]
[1765144329742,0.13108047,90220.0,90219.0,0.00016625]
[1765144330743,0.03208,90225.0,90198.0,0.0110857]
[1765144330938,0.09731,90199.0,90193.0,0.0110863]
[1765144331851,0.18742,90199.0,90198.0,0.001]
[1765144332253,0.00016625,90205.0,90199.0,0.0110857]
[1765144332454,0.00016625,90205.0,90198.0,0.17829]
[1765144332750,0.2023757,90199.0,90198.0,0.001]
[1765144333254,0.19129,90188.0,90187.0,0.00016625]
[1765144334841,0.19329,90188.0,90187.0,0.00016625]
[1765144335255,0.19329,90188.0,90140.0,0.0554643]
[1765144335256,0.19129,90172.0,90169.0,0.0110893]
[1765144335455,0.19129,90170.0,90169.0,0.0110893]
[1765144335849,0.0110893,90169.0,90159.0,0.0110905]
[1765144336248,0.19129,90160.0,90159.0,0.0110905]
[1765144336449,0.00012538,90168.0,90160.0,0.0682004]
[1765144336646,0.19129,90156.0,90150.0,0.0643316]
[1765144336844,0.09688,90156.0,90155.0,0.08942]
[1765144337051,0.19129,90155.0,90154.0,0.0110911]
[1765144337256,0.00012499,90155.0,90154.0,0.1883811]
[1765144338950,0.09700499,90155.0,90154.0,0.1883811]
[1765144339258,0.00012499,90155.0,90154.0,0.1883811]
[1765144339455,0.00112499,90155.0,90154.0,0.1933811]
[1765144340054,0.00016635,90164.0,90163.0,0.1883801]
[1765144341066,0.13153026,90180.0,90172.0,0.0110889]
[1765144341253,0.0110869,90189.0,90172.0,0.0110889]
[1765144341451,0.01088686,90189.0,90172.0,0.0110889]
[1765144341957,0.13153026,90182.0,90172.0,0.0110889]
[1765144342156,0.0110874,90185.0,90172.0,0.0110889]
[1765144342355,0.14278341,90190.0,90176.0,0.0110884]
[1765144342551,0.0110874,90185.0,90176.0,0.0110884]
[1765144342861,0.0110879,90181.0,90171.0,0.01125535]
[1765144343161,0.006,90180.0,90172.0,0.001]
[1765144343767,0.14261816,90181.0,90171.0,0.01125535]
[1765144343952,0.19129,90172.0,90171.0,0.00116635]
[1765144344657,0.09441,90148.0,90147.0,0.011092]
[1765144344850,0.09441,90148.0,90120.0,0.14262556]
[1765144344851,0.19129,90148.0,90120.0,0.14262556]
[1765144345163,0.09688,90145.0,90144.0,0.0110924]
[1765144345459,0.09688,90145.0,90144.0,0.1883824]
[1765144345650,0.00016635,90154.0,90144.0,0.17729]
[1765144345853,0.00016635,90154.0,90142.0,0.05711]
[1765144345854,0.00016635,90154.0,90153.0,0.17729]
[1765144346055,0.00016635,90154.0,90137.0,0.0110932]
[1765144346056,0.19129,90143.0,90137.0,0.0110932]
[1765144346254,0.19129,90141.0,90140.0,0.0110928]
[1765144346649,0.13153026,90150.0,90143.0,0.0110924]
[1765144346960,0.0110914,90153.0,90143.0,0.0110924]
[1765144347161,0.0110918,90150.0,90143.0,0.0110924]
[1765144347347,0.19129,90153.0,90152.0,0.0110914]
[1765144347553,0.19129,90153.0,90152.0,0.1005114]
[1765144347955,0.19129,90153.0,90152.0,0.08942]
[1765144348160,0.19129,90144.0,90143.0,0.007]
[1765144348366,0.00016635,90154.0,90144.0,0.0110924]
[1765144348662,0.09688,90148.0,90147.0,0.1883819]
[1765144348857,0.00016635,90154.0,90147.0,0.1883819]
[1765144349063,0.00016635,90154.0,90153.0,0.1883813]
[1765144349858,0.19145635,90154.0,90152.0,0.006]
[1765144350055,0.19145635,90154.0,90149.0,0.0110917]
[1765144350056,0.19129,90153.0,90149.0,0.0110917]
[1765144350254,0.09688,90150.0,90149.0,0.1005117]
[1765144350460,0.19129,90150.0,90149.0,0.0110917]
[1765144350659,0.01225765,90154.0,90147.0,0.006]
[1765144350660,0.00116635,90154.0,90153.0,0.1883813]
[1765144352363,0.00116635,90154.0,90153.0,0.1933813]
[1765144353256,0.19245635,90154.0,90153.0,0.18229]
[1765144353963,0.19245635,90154.0,90153.0,0.005]
[1765144354266,0.19245635,90154.0,90153.0,0.18229]
[1765144354563,0.00116635,90154.0,90153.0,0.18229]
[1765144357661,0.13153026,90180.0,90165.0,0.0110898]
[1765144357964,0.02478598,90179.0,90165.0,0.0110898]
[1765144358168,0.09441,90173.0,90172.0,0.188379]
[1765144358461,0.22716488,90173.0,90172.0,0.17729]
[1765144359271,0.21607598,90173.0,90172.0,0.17729]
[1765144359568,0.22107598,90173.0,90172.0,0.17829]
[1765144360070,0.23216488,90173.0,90172.0,0.17829]
[1765144360360,0.23216488,90173.0,90156.0,0.05711]
[1765144360361,0.09688,90127.0,90126.0,0.17756739]
[1765144360756,0.13153026,90140.0,90139.0,0.17729]
[1765144360952,0.21613441,90140.0,90139.0,0.17729]
[1765144361158,0.19129,90127.0,90126.0,0.00027739]
[1765144361556,0.19129,90121.0,90120.0,0.05711]
[1765144362961,0.0110948,90125.0,90117.0,0.0110957]
[1765144363164,0.17684,90118.0,90090.0,0.13153026]
[1765144363369,0.001,90121.0,90120.0,0.22077]
[1765144364167,0.00016635,90130.0,90129.0,0.16568]
[1765144364371,0.00016635,90130.0,90129.0,0.1767743]
[1765144364770,0.13153026,90150.0,90146.0,0.0110921]
[1765144364980,0.02465138,90149.0,90148.0,0.16568]
[1765144365366,0.13153026,90156.0,90152.0,0.16568]
[1765144365569,0.07743662,90178.0,90149.0,0.0110918]
[1765144365570,0.13153026,90170.0,90149.0,0.0110918]
[1765144365771,0.13153026,90170.0,90169.0,0.0845]
[1765144365966,0.02466261,90170.0,90158.0,0.0110907]
[1765144366270,0.13153026,90165.0,90155.0,0.05509]
[1765144366475,0.02466261,90164.0,90155.0,0.05509]
[1765144366663,0.03575261,90164.0,90155.0,0.05509]
[1765144366860,0.13153026,90165.0,90155.0,0.05509]
[1765144366861,0.0110904,90161.0,90155.0,0.066181]
[1765144367771,0.0110908,90158.0,90155.0,0.05509]
[1765144367966,0.0110911,90155.0,90150.0,0.00016645]
[1765144368166,0.15992,90151.0,90150.0,0.00016645]
[1765144368573,0.18458332,90151.0,90150.0,0.00016645]
[1765144368964,0.18458332,90151.0,90150.0,0.00116645]
[1765144369366,0.18458332,90151.0,90120.0,0.05509]
[1765144369367,0.0110923,90145.0,90120.0,0.05509]
[1765144369561,0.07996,90133.0,90129.0,0.0110942]
[1765144369873,0.15992,90130.0,90129.0,0.0110942]
[1765144370066,0.15992,90130.0,90124.0,0.0110948]
[1765144370267,0.15992,90130.0,90127.0,0.0110944]
[1765144370465,0.0110945,90127.0,90123.0,0.0110949]
[1765144370770,0.13153026,90130.0,90129.0,0.22077]
[1765144371089,0.0110941,90131.0,90130.0,0.16568]
[1765144371371,0.0110951,90123.0,90120.0,0.0661853]
[1765144371676,0.0110951,90123.0,90120.0,0.05509]
[1765144372674,0.0110943,90129.0,90122.0,0.16568]
[1765144372979,0.00016635,90136.0,90135.0,0.16568]
[1765144373175,0.00016635,90136.0,90120.0,0.05809]
[1765144373176,0.15992,90121.0,90120.0,0.003]
[1765144373374,0.18457874,90121.0,90120.0,0.003]
[1765144374769,0.15992,90113.0,90103.0,0.0661874]
[1765144374969,0.011097,90107.0,90103.0,0.05636769]
[1765144375268,0.0110965,90111.0,90110.0,0.0845]
[1765144375474,0.0933565,90111.0,90110.0,0.0845]
[1765144375777,0.0110969,90108.0,90103.0,0.04527029]
[1765144376379,0.08013,90091.0,90090.0,0.1521591]
[1765144376571,0.0110969,90108.0,90090.0,0.05509]
[1765144376776,8.224e-05,90091.0,90090.0,0.221]
[1765144377076,8.224e-05,90091.0,90090.0,0.2320991]
[1765144378983,0.00108224,90091.0,90090.0,0.2370991]
[1765144380482,0.00016645,90114.0,90090.0,0.2370991]
[1765144380483,0.00016645,90114.0,90113.0,0.1770062]
[1765144380685,0.16133645,90114.0,90113.0,0.16591]
[1765144380984,0.16133645,90114.0,90103.0,0.0498]
[1765144381187,0.1722674,90104.0,90100.0,0.0110978]
[1765144381384,0.16117,90104.0,90100.0,0.0110978]
[1765144381683,6.209e-05,90103.0,90102.0,0.16591]
[1765144382183,0.00616645,90114.0,90113.0,0.16591]
[1765144382375,0.00016645,90114.0,90113.0,0.1770062]
[1765144382983,0.37812,90147.0,90129.0,0.2268043]
[1765144382984,0.07879151,90130.0,90129.0,0.2268043]
[1765144383180,0.1722636,90135.0,90134.0,0.08597]
[1765144383685,0.0912241,90130.0,90129.0,0.0498]
[1765144384076,0.1722641,90130.0,90129.0,0.0498]
[1765144384282,0.16117,90121.0,90120.0,0.00016645]
[1765144385683,0.16117,90121.0,90090.0,0.05509]
[1765144385684,0.0110976,90103.0,90097.0,0.0110981]
[1765144385992,0.16117,90094.0,90093.0,0.0110986]
[1765144386181,0.16117,90094.0,90091.0,0.0110989]
[1765144386385,0.08852912,90144.0,90105.0,0.16591]
[1765144386678,0.07879151,90115.0,90105.0,0.16591]
[1765144386884,0.011097,90107.0,90105.0,0.16591]
[1765144387188,0.011097,90107.0,90106.0,0.16591]
[1765144387785,0.172267,90107.0,90103.0,0.0498]
[1765144387986,0.08013,90104.0,90103.0,0.0498]
[1765144388190,0.08013,90097.0,90096.0,0.0110983]
[1765144388482,0.1722683,90097.0,90096.0,0.16591]
[1765144388784,0.1722683,90097.0,90096.0,0.08597]
[1765144390276,0.001,90107.0,90106.0,0.16591]
[1765144390482,0.00016645,90116.0,90115.0,0.16591]
[1765144390679,0.08013,90108.0,90107.0,0.1770069]
[1765144391289,0.00016645,90116.0,90115.0,0.08597]
[1765144391595,0.16133645,90116.0,90115.0,0.08597]
[1765144392091,0.011096,90115.0,90109.0,0.0110967]
[1765144392394,0.13572,90111.0,90110.0,0.07689]
[1765144392979,0.06786,90112.0,90111.0,0.07689]
[1765144393290,0.13572,90112.0,90111.0,0.07689]
[1765144393890,0.13572,90112.0,90111.0,0.1563]
[1765144394188,0.0110963,90113.0,90112.0,0.1563]
[1765144394690,0.00016645,90116.0,90115.0,0.1563]
[1765144397386,0.00116645,90116.0,90115.0,0.1593]
[1765144397984,0.00116645,90116.0,90115.0,0.1603]
[1765144399485,0.00116645,90116.0,90115.0,0.1563]
[1765144399691,0.00116645,90116.0,90115.0,0.1603]
[1765144400086,0.00116645,90116.0,90115.0,0.004]
[1765144400087,0.13688645,90116.0,90115.0,0.004]
[1765144400287,0.56157728,90116.0,90115.0,0.004]
[1765144402891,0.16157728,90116.0,90115.0,0.004]
[1765144407106,0.16161965,90116.0,90115.0,0.004]
[1765144409703,0.16161965,90116.0,90115.0,0.08089]
[1765144410099,0.16161965,90116.0,90115.0,0.004]
[1765144413993,0.02589965,90116.0,90115.0,0.1603]
[1765144414207,0.09375965,90116.0,90115.0,0.1603]
[1765144414404,0.16161965,90116.0,90115.0,0.1603]
[1765144414911,0.02589965,90116.0,90115.0,0.1603]
[1765144415108,0.16161965,90116.0,90115.0,0.004]
[1765144415501,0.1468173,90104.0,90103.0,0.2061]
[1765144417710,0.1478173,90104.0,90103.0,0.2081]
[1765144418405,0.001,90104.0,90103.0,0.2081]
[1765144418810,0.0110962,90113.0,90103.0,0.2081]
[1765144419016,0.00016645,90116.0,90115.0,0.1563]
[1765144420306,0.07879151,90130.0,90103.0,0.0518]
[1765144420307,0.0110943,90129.0,90128.0,0.1563]
[1765144420514,0.03584474,90129.0,90128.0,0.1563]
[1765144421115,0.0110943,90129.0,90128.0,0.1563]
[1765144421315,0.34084,90131.0,90130.0,0.20492]
[1765144421619,0.5127392,90131.0,90130.0,0.20492]
[1765144422317,0.04558,90121.0,90120.0,0.04862]
[1765144422512,0.09116,90120.0,90119.0,0.00016645]
[1765144422717,0.11589866,90120.0,90119.0,0.00016645]
[1765144424420,0.11589866,90120.0,90119.0,0.06987645]
[1765144424623,0.11589866,90120.0,90119.0,0.07187645]
[1765144424624,0.11689866,90120.0,90119.0,0.07187645]
[1765144424819,0.02573866,90120.0,90119.0,0.13974645]
[1765144426617,0.001,90120.0,90119.0,0.13974645]
[1765144428725,0.09216,90120.0,90119.0,0.00216645]
[1765144428928,0.11689906,90120.0,90119.0,0.00216645]
[1765144430314,0.02573906,90120.0,90119.0,0.13974645]
[1765144431022,0.001,90120.0,90119.0,0.13974645]
[1765144436436,0.0930854,90120.0,90119.0,0.13974645]
[1765144440131,0.11795613,90120.0,90119.0,0.00216645]
[1765144440329,0.08254613,90120.0,90119.0,0.13993645]
[1765144440629,0.03696613,90120.0,90119.0,0.13993645]
[1765144440828,0.10778613,90120.0,90119.0,0.13993645]
[1765144442623,0.10778613,90120.0,90119.0,0.00216645]
[1765144445432,0.10778613,90120.0,90119.0,0.002]
[1765144445635,0.10778613,90120.0,90103.0,0.18757]
[1765144445636,0.0819173,90104.0,90103.0,0.18757]
[1765144446936,0.0829173,90104.0,90103.0,0.18957]
[1765144453727,0.10777316,90104.0,90103.0,0.18957]
[1765144456226,0.10777316,90104.0,90086.0,0.01137701]
[1765144456227,0.0605794,90087.0,90086.0,0.12757751]
[1765144456831,0.08542187,90087.0,90086.0,0.00027751]
[1765144457049,0.17249376,90087.0,90086.0,0.00027751]
[1765144457336,0.17249376,90087.0,90080.0,0.04535]
[1765144457337,0.0605802,90081.0,90080.0,0.04535]
[1765144457832,0.0110994,90087.0,90072.0,0.16772]
[1765144457833,0.0358412,90073.0,90072.0,0.16772]
[1765144458038,0.0111012,90073.0,90072.0,0.16772]
[1765144458241,0.0605812,90073.0,90072.0,0.16772]
[1765144458436,0.0358423,90064.0,90063.0,0.16599]